Cogmind - Beta 17.1 @@@ ROGUE MODE // 2026.08.31 @ 02:58:38 Player: alice_fexa Result: Destroyed by 8R-AWN with 8R-AWN's Boregun Performance ------------- Evolutions (0) 0 Regions Visited (3) 600 Robots Destroyed (35) 175 Value Destroyed (522) 522 Prototype IDs (3) 60 Alien Tech Used (0) 0 Bonus (5864) 5864 TOTAL SCORE: 7221 Bonus ------- Follower Combat Kills 14 Prayed to X0-1V1 5000 Major X0-1V1 Interference 850 Cogmind --------- Core Integrity 0/150 Matter 650/700 Energy 100/100 System Corruption 2% Temperature Cool (0) Movement Core (1450) Ox28 Location -10/Exiles Parts ------- > --- POWER (1) -------- (None) > --- PROPULSION (2) --- (None) > --- UTILITY (2) ------ Huge Storage Unit Light Armor Plating > --- WEAPON (2) ------- Scythe Scythe > --- INVENTORY (26) --- Light Treads Light Treads Improved Heat Sink Improved Heat Sink Light Armor Plating Tractor Beam Spread Laser Assault Rifle Assault Rifle Light Assault Rifle Light Assault Rifle Light Assault Rifle Light Assault Rifle Grenade Launcher Stasis Trap (100%) Stasis Trap (100%) Stasis Trap (100%) Peak State ------------ > --- POWER ------------ Ion Engine > --- PROPULSION ------- Light Treads Wheel > --- UTILITY ---------- Huge Storage Unit X0-1V1's Piety Tracker > --- WEAPON ----------- Grenade Launcher Scythe > --- INVENTORY -------- Reinforced Deuterium Engine Fission Core Light Fission Core Light Treads Light Treads Light Treads Wheel Improved Heat Sink Improved Heat Sink Light Armor Plating Light Armor Plating Light Armor Plating Tractor Beam Spread Laser Assault Rifle Assault Rifle Light Assault Rifle Light Assault Rifle Light Assault Rifle Light Assault Rifle Scythe Stasis Trap Stasis Trap Stasis Trap [Rating: 25] Favorites ----------- Power Ion Engine Engine Ion Engine Propulsion Light Treads Treads Light Treads Wheel Wheel Utility Huge Storage Unit Device X0-1V1's Piety Tracker Storage Huge Storage Unit Protection Light Armor Plating Weapon Assault Rifle Ballistic Gun Assault Rifle Launcher Grenade Launcher Slashing Weapon Scythe Build | -11 -10 -10 -10 ------- Run | Yrd Mat Min Exi Slots Evolved . | . . . . Power . | . . . . Propulsion . | . . . . Utility . | . . . . Weapon . | . . . . Parts Attached 24 | 6 11 2 5 Power 4 | 1 3 . . Engine 4 | 1 3 . . Core . | . . . . Reactor . | . . . . Propulsion 7 | 2 1 2 2 Treads 3 | 2 . . 1 Leg . | . . . . Wheel 4 | . 1 2 1 Hover . | . . . . Flight . | . . . . Utility 8 | 1 6 . 1 Device 2 | . 2 . . Storage 3 | 1 2 . . Processor . | . . . . Hackware . | . . . . Protection 3 | . 2 . 1 Artifact . | . . . . Weapon 5 | 2 1 . 2 Energy Gun . | . . . . Energy Cannon . | . . . . Ballistic Gun 2 | 2 . . . Ballistic Cannon . | . . . . Launcher 1 | . 1 . . Special Weapon . | . . . . Impact Weapon . | . . . . Slashing Weapon 2 | . . . 2 Piercing Weapon . | . . . . Special Melee Weapon . | . . . . Unidentified Prototypes 1 | . 1 . . Corrupted Parts 1 | . . . 1 System Corruption 2 | . . . 2 Parts Lost 6 | . . . 6 Power 1 | . . . 1 Propulsion 4 | . . . 4 Utility 1 | . . . 1 Weapon . | . . . . Highest Loss Streak 5 | . . . 5 To Critical Strikes 2 | . . . 2 Average Backups 20 | 3 17 23 21 Power 3 | . 4 4 1 Propulsion 4 | 1 3 4 3 Utility 5 | . 4 6 7 Weapon 6 | . 5 7 8 Tool/Special . | . . . . Unused Backups 39 | . 9 9 21 Power 12 | . 2 3 7 Propulsion 4 | . 1 2 1 Utility 11 | . 3 . 8 Weapon 12 | . 3 4 5 Tool/Special . | . . . . Average Slot Usage (%) 99 | . 99 99 98 Engine 13 | . 14 14 13 Treads 15 | . 17 13 13 Wheel 12 | . 10 14 13 Device 8 | . 1 14 12 Storage 14 | . 14 14 14 Protection 5 | . 12 . 1 Ballistic Gun 26 | . 27 27 23 Peak Build Rating 25 | 6 21 22 25 Average Rating 16 | 4 9 21 20 On Entrance 12 | . 6 21 22 Avg Prop Armor Cover (%) 10 | . 9 11 11 Naked Turns . | . . . . Heaviest Build 93 | 12 92 91 93 Greatest Support 40 | 40 40 10 10 Greatest Overweight (x) 9 | . 9 9 9 Average Overweight (x) 7 | . 6 8 8 Largest Inventory Capacity 26 | 8 25 26 26 Average Capacity 23 | 7 21 25 26 Most Carried 26 | 4 25 26 26 Average Carried 21 | 3 17 25 23 Final Capacity 26 | 8 25 26 26 Final Carried 26 | 4 25 26 17 Class Distribution -------------------- 58% | Hauler-Mutant 41% | Mutant Dominant Class ---------------- Mutant | -10/Materials Hauler-Mutant | -10/Mines Hauler-Mutant | -10/Exiles Resources | -11 -10 -10 -10 ----------- Run | Yrd Mat Min Exi Matter Collected 1939 | 266 813 410 450 Remotely . | . . . . Salvage Created 1095 | 82 861 152 . Parts 77 | 3 60 14 . Haulers Intercepted 1 | . 1 . . Recyclers Shooed 2 | . 2 . . Parts Field Recycled . | . . . . Retrieved Matter . | . . . . Parts Self-Destructed . | . . . . Prevented . | . . . . Parts Restored . | . . . . Kills | -11 -10 -10 -10 ------- Run | Yrd Mat Min Exi Combat Hostiles Destroyed 20 | . 17 3 . Guns 10 | . 9 1 . AOE 10 | . 8 2 . Classes Destroyed 10 | 1 7 2 . Worker 4 | . 2 2 . Builder 3 | . 2 1 . Tunneler 1 | . . 1 . Hauler 1 | . 1 . . Recycler 4 | 1 2 1 . Mechanic 1 | . 1 . . Watcher 3 | . 3 . . Swarmer 9 | . 8 1 . Grunt 9 | . 9 . . Assembled 2 | . . 2 . Best Kill Streak 5 | 1 5 3 . Combat Bots Only 5 | . 5 2 . Max Kills in Single Turn 4 | 1 4 1 . Gunslinging . | . . . . Exploded 3 | . 3 1 . Melee . | . . . . Uniques/NPCs Destroyed . | . . . . Combat | -11 -10 -10 -10 -------- Run | Yrd Mat Min Exi Hostile Shots Fired 97 | . 56 4 37 Missed 27 | . 23 1 3 Hits 70 | . 33 3 34 Projectile 70 | . 33 3 34 Critical Strikes 17 | . . . 17 Damage Taken 1078 | . 417 58 603 Core 177 | . 26 9 142 Absorbed by Shields . | . . . . Regen/Repaired (Parts) 68 | . 68 . . Core Remaining (%) 100 | 100 . . . Volleys Fired 80 | 1 67 12 . Largest 2 | 2 2 2 . Hottest 40 | 40 40 40 . Shots Fired 149 | 2 126 21 . Gun 138 | 2 118 18 . Cannon . | . . . . Launcher 11 | . 8 3 . Special . | . . . . Kinetic 138 | 2 118 18 . Thermal . | . . . . Explosive 11 | . 8 3 . Electromagnetic . | . . . . Robot Hit Streak 10 | 1 10 5 . Robot Miss Streak 3 | . 3 1 . Penetration Max . | . . . . Secondary Targets 1 | . 1 . . Max Gunslinging Chain 1 | . 1 . . Shots Hit Robots 102 | 1 77 13 11 Core Hits 56 | 1 44 9 2 Critical Kills 2 | . 1 1 . Critical Parts Destroyed . | . . . . Critical Strikes 4 | . 1 1 2 Destroy 2 | . 1 1 . Sever 2 | . . . 2 Melee Attacks 16 | . . . 16 Impact . | . . . . Slashing 16 | . . . 16 Piercing . | . . . . Sneak Attacks . | . . . . Combat Hostiles . | . . . . Follow-up Attacks 2 | . . . 2 Damage Inflicted 2188 | 15 1572 260 341 Guns 1137 | 15 967 155 . Cannons . | . . . . Explosions 710 | . 605 105 . Melee 341 | . . . 341 Ramming . | . . . . Kinetic 1137 | 15 967 155 . Thermal . | . . . . Explosive 710 | . 605 105 . Electromagnetic . | . . . . Impact . | . . . . Slashing 341 | . . . 341 Piercing . | . . . . Highest Corruption 2 | . . . 2 Average Corruption 2 | . . . 2 Corruption Purged . | . . . . Corruption Blocked . | . . . . Effects 4 | . . . 4 Message Errors 3 | . . . 3 Heat Flow Errors 1 | . . . 1 Overload Shots . | . . . . Overflow Damage 41 | . 41 . . Projectiles . | . . . . Explosions 41 | . 41 . . Melee . | . . . . Knockbacks . | . . . . Impact . | . . . . Kinetic . | . . . . Secondary . | . . . . Self-Inflicted Damage 81 | . 81 . . Shots 3 | . 3 . . Rammed . | . . . . Targets Rammed . | . . . . Kicked . | . . . . Crushed . | . . . . Highest Temperature 119 | . 9 . 119 Average Temperature 17 | . 3 . 68 Received Heat Transfer 138 | . 132 . 6 Siege Activations . | . . . . Martial Activations . | . . . . Shielding Activations . | . . . . Robots Disrupted . | . . . . Combat Hostiles . | . . . . Robots Corrupted . | . . . . Combat Hostiles . | . . . . Parts Fried . | . . . . Impact Corruptions . | . . . . Robots Melted . | . . . . Combat Hostiles . | . . . . Parts Melted . | . . . . Heat Transferred . | . . . . Parts Sabotaged . | . . . . Parts Stolen . | . . . . Parts Stripped . | . . . . Power Chain Reactions . | . . . . Alert | -11 -10 -10 -10 ------- Run | Yrd Mat Min Exi Maximum Alert Level 1 | . 1 . . Low Security (%) 96 | 100 93 100 . Level 1 3 | . 6 . . Level 2 . | . . . . Level 3 . | . . . . Level 4 . | . . . . Level 5 . | . . . . High Security . | . . . . Max Security . | . . . . Peak Influence 230 | 5 230 76 . Initial 23 | . . 23 . Average 56 | . 110 5 . Influence Increases 695 | 5 542 148 . Destroy 0b10 Robot/C 400 | . 340 60 . Destroy 0b10 Robot/NC 85 | 5 55 25 . Destroy Leader 88 | . 78 10 . Allied During Kill 6 | . . 6 . Successful Hack 12 | . 12 . . Destroy Structure 74 | . 57 17 . Lose Combat Pursuer 30 | . . 30 . Influence Decreases 695 | 5 481 209 . Entered New Map 38 | . . 38 . Time Decay 657 | 5 481 171 . Squads Dispatched 3 | . 3 . . Investigation 1 | . 1 . . Extermination . | . . . . Reinforcement 2 | . 2 . . Assault . | . . . . Garrison . | . . . . Intercept . | . . . . Searches Triggered . | . . . . Construction Impeded . | . . . . Haulers Reinforced . | . . . . Active Scanning Responses . | . . . . Cargo Convoy Interrupts . | . . . . Stealth | -11 -10 -10 -10 --------- Run | Yrd Mat Min Exi Distress Signals . | . . . . Communications Jammed . | . . . . Distress Signals . | . . . . Times Spotted 34 | . 26 7 1 Peak Tracking Total 9 | . 4 3 9 Tactical Retreats 1 | . . 1 . Traps | -11 -10 -10 -10 ------- Run | Yrd Mat Min Exi Traps Triggered 4 | . 2 2 . Indirectly . | . . . . Trap Hack Attempts . | . . . . Triggered . | . . . . Disarmed . | . . . . Reprogrammed . | . . . . Reused . | . . . . Traps Extracted . | . . . . Installed . | . . . . Triggered . | . . . . Most Traps Carried 3 | . . 3 3 Machines | -11 -10 -10 -10 ---------- Run | Yrd Mat Min Exi Machines Disabled 1 | . . . 1 Max in Single Turn 1 | . . . 1 Machines Repaired . | . . . . Machines Dismantled . | . . . . Machines Sabotaged . | . . . . Overloaded Fab Kills . | . . . . Hacking | -11 -10 -10 -10 --------- Run | Yrd Mat Min Exi Machines Accessed 11 | . 9 1 1 Terminals 6 | . 6 . . Fabricators . | . . . . Repair Stations 1 | . 1 . . Recycling Units 2 | . 2 . . Scanalyzers . | . . . . Garrison Access . | . . . . Total Hacks 23 | . 20 1 2 Successful 14 | . 11 1 2 Failed 9 | . 9 . . Catastrophic . | . . . . Database Lockouts . | . . . . Manual 13 | . 13 . . Terminals 13 | . 13 . . Fabricators . | . . . . Repair Stations 3 | . 3 . . Recycling Units 4 | . 4 . . Scanalyzers . | . . . . Garrison Access . | . . . . Terminal Hacks 4 | . 1 1 2 Record 2 | . . . 2 Prototype ID Bank 1 | . 1 . . Open Door 1 | . . 1 . Fabricator Hacks . | . . . . Repair Station Hacks 2 | . 2 . . Scan Component 1 | . 1 . . Repair 1 | . 1 . . Recycling Unit Hacks 2 | . 2 . . Retrieve Components 2 | . 2 . . Scanalyzer . | . . . . Garrison Access Hacks . | . . . . Unauthorized Hacks 6 | . 6 . . Terminals 6 | . 6 . . Botnet 1 | . 1 . . Skim 5 | . 5 . . Fabricators . | . . . . Repair Stations . | . . . . Recycling Units . | . . . . Scanalyzers . | . . . . Garrison Access . | . . . . Data Cores Recovered . | . . . . Used . | . . . . Hacking Detections 7 | . 7 . . Full Trace Events 1 | . 1 . . Feedback Events . | . . . . Feedback Blocked . | . . . . Robot Schematics Acquired . | . . . . Robots Built . | . . . . Authchips . | . . . . Time . | . . . . Total Robot Build Rating . | . . . . Part Schematics Acquired . | . . . . Parts Built . | . . . . Authchips . | . . . . Time . | . . . . Total Part Build Rating . | . . . . Part Studies Acquired . | . . . . Parts Repaired 1 | . 1 . . Time 26 | . 26 . . Parts Recycled . | . . . . Recycled Matter . | . . . . Retrieved Matter . | . . . . Retrieved Components 10 | . 10 . . Parts Scanalyzed . | . . . . Part Schematics Acquired . | . . . . Parts Damaged . | . . . . Bothacking | -11 -10 -10 -10 ------------ Run | Yrd Mat Min Exi Used RIF Installer . | . . . . Robots Hacked . | . . . . Non-combat . | . . . . Combat . | . . . . Robot Hacks Applied . | . . . . Relay Couplers Released . | . . . . Fabnet Peak Effective % . | . . . . Robots Rewired . | . . . . Allies Hacked . | . . . . Hacks Repelled . | . . . . Allies | -11 -10 -10 -10 -------- Run | Yrd Mat Min Exi Total Allies 5 | . . 5 . Largest Group 4 | . . 4 3 Highest-Rated Group 71 | . . 71 52 Highest-Rated Ally 31 | . . 31 31 Total Orders 8 | . . 2 6 STAY 5 | . . 1 4 FOLLOW 3 | . . 1 2 Ally Attacks 42 | . . 15 27 Total Damage 153 | . . 103 50 Kills 2 | . . 2 . Allies Corrupted . | . . . . Allies Melted . | . . . . X0-1V1 Amusement Gains 120 | . 15 30 75 Average Entertainment 24 | . 14 24 . Good Acts 6 | . . 6 . Bad Acts 5 | . . 5 . Intel | -11 -10 -10 -10 ------- Run | Yrd Mat Min Exi Active Infowar (turns) 72 | . 72 . . Sensors 72 | . 72 . . Robot Analysis Total . | . . . . Derelict Logs Recovered 2 | . . 2 . Drone Launches . | . . . . Drone Recoveries . | . . . . Exploration | -11 -10 -10 -10 ------------- Run | Yrd Mat Min Exi Turns Passed 4929 | 81 1953 1951 944 Spaces Moved 2189 | 44 837 889 419 Core 5 | 5 . . . Treads 259 | 39 220 . . Legs . | . . . . Wheels 1925 | . 617 889 419 Hover . | . . . . Flight . | . . . . Fastest Speed 50 | 50 160 200 200 Average Speed 196 | 147 192 200 201 Slowest Speed 215 | 160 215 215 215 Overloaded Moves . | . . . . Propulsion Burnouts . | . . . . Robots Hopped . | . . . . Potential Cave-ins . | . . . . Cave-ins Triggered . | . . . . Exploration Rate (%) 64 | 4 98 98 57 Regions Visited 3 Branch Regions 2 Pre-discovered Areas 1 | . . . 1 Known Exits Taken 1 | . . 1 . Unknown Exits Taken 2 | 1 1 . . Scrap Searched 2 | . . 2 . Spaces Dug . | . . . . Terrain Destroyed 73 | . 52 21 . Melee . | . . . . Projectile . | . . . . AOE 73 | . 52 21 . Terrain Rammed . | . . . . Walls Destroyed . | . . . . Machines Disabled . | . . . . Actions | -11 -10 -10 -10 --------- Run | Yrd Mat Min Exi Total 2661 | 55 1055 1046 505 Wait 231 | 1 77 113 40 Move 2186 | 43 836 888 419 Hop . | . . . . Pick Up 59 | 4 33 13 9 Fast Attach 15 | 6 7 2 . Attach 4 | . . . 4 Detach 3 | . 2 . 1 Swap 21 | . 13 4 4 Drop 48 | . 20 14 14 Fire 80 | 1 67 12 . Melee 14 | . . . 14 Ram . | . . . . Kick . | . . . . Crush . | . . . . Escape Stasis . | . . . . Rewire . | . . . . Trap . | . . . . Miscellaneous . | . . . . Route ------- -11/Scrapyard -10/Materials (discovered 6 exits: *Mat x3 / *Min x2 / [*Sub]) -10/Mines (discovered 4 exits: *Mat x2 / *Exi / [*Sub]) -10/Exiles History --------- Turn | Location | Event 16 | -11/Scrapyard | Discovered new exit (range 15) 82 | -11/Scrapyard | Entered Materials 328 | -10/Materials | Build established: Mutant 436 | -10/Materials | Discovered new exit (range 6) 858 | -10/Materials | Discovered new exit (range 8) 1143 | -10/Materials | Discovered new exit (range 16) 1196 | -10/Materials | Repaired Assault Rifle 1332 | -10/Materials | Discovered new exit (range 7) 1502 | -10/Materials | Discovered new exit (range 8) 1694 | -10/Materials | Discovered new exit (range 13) 1938 | -10/Materials | Prayed at D.C.S.S. Altar Unit 2035 | -10/Materials | Entered Mines 2058 | -10/Mines | Discovered new exit (range 15) 2074 | -10/Mines | Inventory capacity permanently improved by X0-1V1 (+1; -100 max core) 2104 | -10/Mines | Identified exit to Materials 2252 | -10/Mines | Discovered new exit (range 9) 2306 | -10/Mines | Found a hidden stash of uninstalled traps 2358 | -10/Mines | Build established: Hauler-Mutant 2496 | -10/Mines | Assembled infested the area 2603 | -10/Mines | Assisted by bots powering up and referring to "LRC-V3" 2646 | -10/Mines | Deemed a non-threat by the Exiles lab entrance 3074 | -10/Mines | X0-1V1 vaporized surrounding terrain (radius 15) 3203 | -10/Mines | Met a Derelict who couldn't figure out how to use a Trap Extractor 3763 | -10/Mines | Identified exit to Exiles 3763 | -10/Mines | X0-1V1 revealed exit location to -10/Exiles 3793 | -10/Mines | X0-1V1 put everyone to sleep 3831 | -10/Mines | X0-1V1 sent you into danger 3986 | -10/Mines | Entered Exiles 3986 | -10/Exiles | Accompanied by 3 allies 4016 | -10/Exiles | Led the pair of lost Derelicts to a safe place 4040 | -10/Exiles | Met 8R-AWN 4068 | -10/Exiles | Met EX-HEX 4148 | -10/Exiles | Met EX-DEC 4158 | -10/Exiles | Learned location of Zion (-6) 4779 | -10/Exiles | Attacked by the Exiles 4887 | -10/Exiles | Core integrity fell below 50% 4919 | -10/Exiles | Core integrity fell below 20% 4921 | -10/Exiles | Lost 5 parts (1p3n1u) 4930 | -10/Exiles | Destroyed by 8R-AWN with 8R-AWN's Boregun Last Messages --------------- 04910_ 8R-AWN Prototype Leg severed. 04910_ Penetrated by HV Slug. 04910_ HV Slug penetrates Wall. 04915_ Penetrated by HV Slug. 04915_ HV Slug penetrates Earth. 04916_ SKD4F841A&>D,HMZ>G/7PTCTJB,20SR4IJIJ 04917_ Scythe follow-up attack on 8R-AWN. 04917_ Penetrated by HV Slug. 04922_ Critical hit (Destroy). 04925_ HV Slug penetrates Machine. 04925_ Machine disabled. 04925_ HV Slug penetrates Wall. 04927_ Penetrated by HV Slug. 04927_ Wheel destroyed. 04927_ HV Slug penetrates Machine. 04928_ Penetrated by HV Slug. 04928_ Critical hit (Destroy). 04928_ HV Slug penetrates Machine. 04930_ Penetrated by HV Slug. 04930_ X0-1V1 guffaws! Map ----- +----------------------------------------------------+ | ?????????????????????????????????????????????????? | | ?????????????????????????????????????????????????? | | ?????????????????????????????????????????????????? | | ?????????????????????????????????????????????????? | | ?????????????????????????????????????????????????? | | ?????????????????????????????????????????????????? | | ?????????????????????????????????????????????????? | | ?????????????????????????????????????????????????? | | ?????????????????????????????????????????????????? | | ?????????????????????????????????????????????????? | | ?????????????????????????????????????????????????? | | ?????????????????????????????????????????????????? | | ?????????????????????????????????????????????????? | | ?????????????????????????????????????????????????? | | ?????????????????????????????????????????????????? | | ?????????????????????????????????????????????????? | | ?????????????????????????????????????????????????? | | ?????????????????????????????????????????????????? | | ?????????????????????????????????????????????????? | | ?????????????????????????????????????????????????? | | ?????????????????????????????????????????????????? | | ?????????????????????????????????????????????????? | | ?????????????????????????????????????????????????? | | ??????????????????????#######????????????????????? | | ???????? ######???????#!g! #????????????????????? | | ??????? #""#??????# @ "#????????????????????? | | ??????? ??????# "#????????????????????? | | ??????" #????## " #????????????##??????? | | ??????? #####" =""#???????????? """???? | | ???????# ##" ""#????????????" """#??? | | ????????# #""g ###????????????" ???? | | ???????????# #?????????????"" ???? | | ?????????????## ##????????????"" "???? | | ??????????????### [ "####????????? ""???? | | ????????########" """#??????????" "????? | | ????????# !!""" ! % "#??????????# #????? | | ????????#!!! = "#;; ######???### ###?## | | ????????#! !!* % "# #; ""#####X# #"###" | | ????????#! *** #;###" """"" | | ????????# ! """ "####??#"; "" "" | | ????????######"###?????##;# % " " | | ????????????# #?????????? ##" | | ???????????# #??????????? ??### | | ??????????# #?????????????????## | | ?????????# #???????????????????## | | ????????? #?????????????????????##" | | ???????? ????????????????????????#""" | | ???????#????????????????????????##" | | ????????????????????????????????#"" " | | ???????????????????????????????##""" """ | +----------------------------------------------------+ Best States ------------- Heat Dissipation 25 Energy Generation 10 Energy Capacity 1050 Matter Stores 700 Matter Capacity 700 Sight Range 16 Robot Scan Range 14 Terrain Scan Density 10 Armor Coverage 150 Evasion (%) 40 Recoil Reduction 2 Item Schematics ----------------- None Robot Schematics ------------------ None Fabricated ------------ Nothing Repaired ---------- Assault Rifle | 32% | -10/Materials Studied --------- None Alien Tech Used ----------------- None Achievements -------------- None Challenges ------------ None Game ------ Seed RestorationGatlingNetwork Manual? 0 Play Time 00:17:32 Cumulative 1735.5 hours Start 2026.08.31 @ 02:41:58 End 2026.08.31 @ 02:58:38 Sessions 1 Manual Loads 0 Difficulty Rogue Special Mode None Game No. 1248 Rogue 1208 Adventurer 40 Explorer 0 Win Type - Total 229 Types 109/12/76/3/2/4/16/2/1/4 Lore% 97 Gallery% 98 Achievement% 93 Wizard Run 0 Options --------- Layout 0 ASCII 0 Keyboard 0 Movement Numpad Keybinds 0 Fullscreen 0 Font 20/Terminus Map View 76x50 Zoom Use 0% Tactical HUD 1 Map Filters NONE Filters NONE Steam 1 RUN: f63b8f4d-7319-482f-9960-e847c5312b83